fUSD/lending_fUSD_20240109
["ID","MTS","AMOUNT","RATE_DAILY","PERIOD"]
[310908432,1704814308902,-713.51,0.00041342,30]
[310908433,1704814308912,-1659.56,0.00041342,30]
[310908434,1704814308921,-500.0,0.00041342,30]
[310908435,1704814308931,-500.0,0.00041342,30]
[310908436,1704814308940,-500.0,0.00041342,30]
[310908437,1704814308949,-500.0,0.00041342,30]
[310908438,1704814308959,-500.0,0.00041342,30]
[310908439,1704814308968,-500.0,0.00041342,30]
[310908440,1704814308978,-500.0,0.00041342,30]
[310908441,1704814308987,-803.78,0.00041342,30]
[310908442,1704814308997,-500.0,0.00041342,30]
[310908443,1704814309007,-640.64767581,0.00041342,30]
[310908444,1704814309016,-500.0,0.00041342,30]
[310908445,1704814309029,-614.42,0.00041342,30]
[310908446,1704814309039,-1000.0,0.00041342,7]
[310908447,1704814309048,-500.0,0.00041342,30]
[310908448,1704814309058,-800.95,0.00041342,30]
[310908449,1704814309068,-1758.64,0.00041342,30]
[310908450,1704814309078,-500.0,0.00041342,30]
[310908451,1704814309087,-313.99185308,0.00041342,7]
[310908452,1704814309097,-500.0,0.00041342,30]
[310908453,1704814309106,-500.0,0.00041342,30]
[310908454,1704814309116,-500.0,0.00041342,30]
[310908455,1704814309126,-1778.42,0.00041342,30]
[310908456,1704814309135,-500.0,0.00041342,30]
[310908457,1704814309145,-848.11,0.00041342,30]
[310908458,1704814309154,-3407.77,0.00041342,30]
[310908459,1704814309164,-2138.28,0.00041342,30]
[310908460,1704814309174,-500.0,0.00041342,30]
[310908461,1704814309183,-500.0,0.00041342,30]
[310908462,1704814309193,-500.0,0.00041342,7]
[310908463,1704814309203,-500.0,0.00041342,30]
[310908464,1704814309213,-500.0,0.00041342,30]
[310908465,1704814309223,-500.0,0.00041342,30]
[310908466,1704814309233,-886.41,0.00041342,30]
[310908467,1704814309243,-500.0,0.00041342,2]
[310908468,1704814309252,-500.0,0.00041342,30]
[310908469,1704814309262,-500.0,0.00041342,30]
[310908470,1704814309272,-1677.31,0.00041342,30]
[310908471,1704814309282,-500.0,0.00041342,30]
[310908472,1704814309292,-500.0,0.00041342,30]
[310908473,1704814309302,-500.0,0.00041342,30]
[310908474,1704814309313,-500.0,0.00041342,30]
[310908475,1704814309323,-1138.73,0.00041342,30]
[310908476,1704814309334,-3178.9,0.00041342,30]
[310908477,1704814309344,-2732.04,0.00041342,30]
[310908478,1704814309354,-500.0,0.00041342,30]
[310908479,1704814309365,-770.65,0.00041342,30]
[310908480,1704814309375,-500.0,0.00041342,30]
[310908481,1704814309385,-500.0,0.00041342,30]
[310908482,1704814309395,-2194.76,0.00041342,30]
[310908483,1704814309406,-1008.53,0.00041342,30]
[310908484,1704814309417,-500.0,0.00041342,30]
[310908485,1704814309428,-1048.75,0.00041342,30]
[310908486,1704814309438,-500.0,0.00041342,30]
[310908487,1704814309448,-500.0,0.00041342,30]
[310908488,1704814309459,-1329.34,0.00041342,30]
[310908489,1704814309468,-2754.0,0.00041342,30]
[310908490,1704814309478,-500.0,0.00041342,30]
[310908491,1704814309488,-500.0,0.00041342,30]
[310908492,1704814309497,-1507.83,0.00041342,30]
[310908493,1704814309507,-500.0,0.00041342,30]
[310908494,1704814309517,-680.5,0.00041342,30]
[310908495,1704814309527,-500.0,0.00041342,30]
[310908496,1704814309536,-634.38,0.00041342,30]
[310908497,1704814309546,-500.0,0.00041342,30]
[310908498,1704814309556,-2700.24,0.00041342,30]
[310908499,1704814309570,-500.0,0.00041342,30]
[310908500,1704814309579,-1356.37,0.00041342,30]
[310908501,1704814309589,-500.0,0.00041342,30]
[310908502,1704814309600,-500.0,0.00041342,30]
[310908503,1704814309609,-500.0,0.00041342,30]
[310908504,1704814309618,-651.64,0.00041342,30]
[310908505,1704814309628,-500.0,0.00041342,30]
[310908506,1704814309637,-500.0,0.00041342,30]
[310908507,1704814309647,-500.0,0.00041342,30]
[310908508,1704814309657,-952.35,0.00041342,30]
[310908509,1704814309666,-500.0,0.00041342,30]
[310908510,1704814309675,-500.0,0.00041342,30]
[310908511,1704814309685,-1810.23,0.00041342,30]
[310908512,1704814309695,-500.0,0.00041342,30]
[310908513,1704814309706,-587.58,0.00041342,30]
[310908514,1704814309715,-625.64,0.00041342,30]
[310908515,1704814309725,-676.46,0.00041342,30]
[310908516,1704814309736,-500.0,0.00041342,30]
[310908517,1704814309745,-500.0,0.00041342,30]
[310908518,1704814309755,-500.0,0.00041342,30]
[310908519,1704814309765,-1006.7,0.00041342,30]
[310908520,1704814309775,-500.0,0.00041342,30]
[310908521,1704814309785,-1037.96,0.00041342,30]
[310908522,1704814309795,-1236.35,0.00041342,30]
[310908523,1704814309807,-1919.15,0.00041342,30]
[310908524,1704814309820,-500.0,0.00041342,30]
[310908525,1704814309829,-500.0,0.00041342,30]
[310908526,1704814309841,-500.0,0.00041342,30]
[310908527,1704814309851,-319.68993716,0.00041342,30]
[310908528,1704814309862,-1578.69,0.00041342,30]
[310908529,1704814309873,-500.0,0.00041342,30]
[310908530,1704814309885,-1865.73,0.00041342,30]
[310908531,1704814309895,-589.31,0.00041342,30]
[310908532,1704814309905,-500.0,0.00041342,30]
[310908533,1704814309914,-1362.93,0.00041342,30]
[310908534,1704814309924,-1537.84,0.00041342,30]
[310908535,1704814309933,-2456.66,0.00041342,30]
[310908536,1704814309943,-500.0,0.00041342,30]
[310908537,1704814309952,-500.0,0.00041342,30]
[310908538,1704814309962,-500.0,0.00041342,30]
[310908539,1704814309971,-500.0,0.00041342,30]
[310908540,1704814309982,-1710.93,0.00041342,30]
[310908541,1704814309991,-788.83,0.00041342,30]
[310908542,1704814310001,-500.0,0.00041342,30]
[310908543,1704814310011,-2756.46,0.00041342,30]
[310908544,1704814310020,-2705.23,0.00041342,30]
[310908545,1704814310030,-2588.77,0.00041342,30]
[310908546,1704814310039,-500.0,0.00041342,30]
[310908547,1704814310049,-946.47,0.00041342,30]
[310908548,1704814310058,-500.0,0.00041342,30]
[310908549,1704814310069,-500.0,0.00041342,30]
[310908550,1704814310079,-500.0,0.00041342,30]
[310908551,1704814310088,-500.0,0.00041342,30]
[310908552,1704814310098,-500.0,0.00041342,30]
[310908553,1704814310108,-825.0,0.00041342,30]
[310908554,1704814310118,-500.0,0.00041342,30]
[310908555,1704814310128,-500.0,0.00041342,30]
[310908556,1704814310139,-821.89,0.00041342,30]
[310908557,1704814310149,-1714.7,0.00041342,30]
[310908558,1704814310159,-987.47,0.00041342,30]
[310908559,1704814310169,-12516.53,0.00041342,30]
[310908560,1704814310179,-2523.55,0.00041342,30]
[310908561,1704814310189,-500.0,0.00041342,30]
[310908562,1704814310199,-1027.68,0.00041342,30]
[310908563,1704814310209,-1474.62,0.00041342,30]
[310908564,1704814310219,-1217.97,0.00041342,30]
[310908565,1704814310229,-300.0,0.00041342,30]
[310908566,1704814310239,-500.0,0.00041342,30]
[310908567,1704814310250,-500.0,0.00041342,30]
[310908568,1704814310260,-1454.57,0.00041342,30]
[310908569,1704814310269,-500.0,0.00041342,5]
[310908570,1704814310280,-1048.97,0.00041342,30]
[310908571,1704814310289,-2127.96,0.00041342,30]
[310908572,1704814310299,-500.0,0.00041342,30]
[310908573,1704814310309,-1299.93,0.00041342,30]
[310908574,1704814310319,-500.0,0.00041342,30]
[310908575,1704814310330,-266.1648584,0.00041342,30]
[310908576,1704814310340,-500.0,0.00041342,30]
[310908577,1704814310350,-511.3165594,0.00041342,7]
[310908578,1704814310360,-2596.84,0.00041342,30]
[310908579,1704814310369,-500.0,0.00041342,30]
[310908580,1704814310379,-1950.17,0.00041342,30]
[310908581,1704814310388,-725.04,0.00041342,30]
[310908582,1704814310398,-2106.17,0.00041342,30]
[310908583,1704814310408,-500.0,0.00041342,30]
[310908584,1704814310417,-794.41,0.00041342,30]
[310908585,1704814310426,-3285.45,0.00041342,30]
[310908586,1704814310435,-1542.09,0.00041342,7]
[310908587,1704814310445,-500.0,0.00041342,30]
[310908588,1704814310454,-7119.89,0.00041342,30]
[310908589,1704814310463,-2655.79,0.00041342,30]
[310908590,1704814310472,-650.25,0.00041342,30]
[310908591,1704814310482,-500.0,0.00041342,30]
[310908592,1704814310491,-1087.65,0.00041342,30]
[310908593,1704814310501,-500.0,0.00041342,30]
[310908594,1704814310510,-977.92,0.00041342,30]
[310908595,1704814310520,-913.65,0.00041342,30]
[310908596,1704814310529,-576.88,0.00041342,30]
[310908597,1704814310539,-2362.44,0.00041342,30]
[310908598,1704814310549,-1112.82,0.00041342,30]
[310908599,1704814310558,-1726.68,0.00041342,30]
[310908600,1704814310569,-3996.86,0.00041342,30]
[310908601,1704814310580,-2396.9,0.00041342,30]
[310908602,1704814310590,-500.0,0.00041342,30]
[310908603,1704814310599,-517.02620349,0.00041342,30]
[310908604,1704814310609,-511.32195524,0.00041342,30]
[310908605,1704814310618,-2486.71,0.00041342,30]
[310908606,1704814310628,-500.0,0.00041342,30]
[310908607,1704814310638,-500.0,0.00041342,30]
[310908608,1704814310647,-3045.65,0.00041342,30]
[310908609,1704814310657,-502.99,0.00041342,30]
[310908610,1704814310666,-4277.01,0.00041342,30]
[310908611,1704814310676,-2246.6,0.00041342,30]
[310908612,1704814310685,-1448.82,0.00041342,2]
[310908613,1704814310695,-1043.39,0.00041342,30]
[310908614,1704814310705,-502.73,0.00041342,30]
[310908615,1704814310714,-534.65,0.00041342,30]
[310908616,1704814310724,-891.36,0.00041342,30]
[310908617,1704814310831,-500.0,0.00041342,30]
[310908618,1704814310841,-1353.62,0.00041342,30]
[310908619,1704814310851,-500.0,0.00041342,30]
[310908620,1704814310861,-2632.89,0.00041342,30]
[310908621,1704814310870,-1838.21,0.00041342,30]
[310908622,1704814310880,-1576.53,0.00041342,30]
[310908623,1704814310890,-1105.49,0.00041342,30]
[310908624,1704814310900,-862.54,0.00041342,30]
[310908625,1704814310909,-1537.91,0.00041342,30]
[310908626,1704814310919,-500.0,0.00041342,30]
[310908627,1704814310928,-678.18,0.00041342,30]
[310908628,1704814310938,-500.0,0.00041342,30]
[310908629,1704814310947,-500.0,0.00041342,30]
[310908630,1704814310956,-1574.3,0.00041342,30]
[310908631,1704814310966,-4265.52,0.00041342,30]
[310908632,1704814310975,-3580.78,0.00041342,30]
[310908633,1704814310985,-726.93,0.00041342,30]
[310908634,1704814310994,-10916.38,0.00041342,30]
[310908635,1704814311004,-500.0,0.00041342,30]
[310908636,1704814311013,-1982.37,0.00041342,30]
[310908637,1704814311023,-500.0,0.00041342,30]
[310908638,1704814311032,-500.0,0.00041342,30]
[310908639,1704814311042,-1469.95,0.00041342,30]
[310908640,1704814311052,-2986.22,0.00041342,30]
[310908641,1704814311061,-1699.32,0.00041342,30]
[310908642,1704814311071,-3068.15,0.00041342,30]
[310908643,1704814311081,-686.48,0.00041342,30]
[310908644,1704814311091,-500.0,0.00041342,30]
[310908645,1704814311100,-1390.68,0.00041342,30]
[310908646,1704814311110,-10247.09,0.00041342,30]
[310908647,1704814311119,-1223.53,0.00041342,30]
[310908648,1704814311129,-500.0,0.00041342,30]
[310908649,1704814311138,-1685.22,0.00041342,30]
[310908650,1704814311147,-500.0,0.00041342,30]
[310908651,1704814311156,-500.0,0.00041342,30]
[310908652,1704814311166,-508.10892502,0.00041342,30]
[310908653,1704814311176,-500.0,0.00041342,30]
[310908654,1704814311186,-500.0,0.00041342,30]
[310908655,1704814311196,-500.0,0.00041342,30]
[310908656,1704814311207,-1149.96,0.00041342,30]
[310908657,1704814311217,-6253.79,0.00041342,30]
[310908658,1704814311228,-500.0,0.00041342,30]
[310908659,1704814311237,-500.0,0.00041342,30]
[310908660,1704814311247,-989.82,0.00041342,30]
[310908661,1704814311256,-500.0,0.00041342,30]
[310908662,1704814311266,-2365.66,0.00041342,30]
[310908663,1704814311276,-1963.83,0.00041342,30]
[310908664,1704814311286,-701.0,0.00041342,30]
[310908665,1704814311296,-705.46,0.00041342,30]
[310908666,1704814311306,-500.0,0.00041342,30]
[310908667,1704814311315,-7334.72,0.00041342,30]
[310908668,1704814311325,-500.0,0.00041342,30]
[310908669,1704814311335,-2159.55,0.00041342,30]
[310908670,1704814311345,-7619.16,0.00041342,30]
[310908671,1704814311354,-7759.7,0.00041342,30]
[310908672,1704814311365,-500.0,0.00041342,30]
[310908673,1704814311375,-1725.58,0.00041342,30]
[310908674,1704814311386,-2266.7,0.00041342,30]
[310908675,1704814311397,-1264.61,0.00041342,30]
[310908676,1704814311407,-500.0,0.00041342,30]
[310908677,1704814311418,-500.0,0.00041342,30]
[310908678,1704814311428,-914.32,0.00041342,30]
[310908679,1704814311437,-689.51,0.00041342,30]
[310908680,1704814311447,-500.0,0.00041342,30]
[310908681,1704814311457,-6777.19,0.00041342,30]
[310908682,1704814311468,-500.0,0.00041342,30]
[310908683,1704814311477,-1573.82,0.00041342,30]
[310908684,1704814311488,-4036.91,0.00041342,30]
[310908685,1704814311498,-2670.87,0.00041342,30]
[310908686,1704814311507,-3417.76,0.00041342,30]
[310908687,1704814311517,-649.74,0.00041342,30]
[310908688,1704814311526,-1768.69,0.00041342,30]
[310908689,1704814311536,-2656.66,0.00041342,30]
[310908690,1704814311545,-500.0,0.00041342,30]
[310908691,1704814311555,-500.0,0.00041342,30]
[310908692,1704814311565,-3624.89,0.00041342,30]
[310908693,1704814311574,-891.81,0.00041342,30]
[310908694,1704814311584,-1969.21,0.00041342,30]
[310908695,1704814311594,-500.0,0.00041342,30]
[310908696,1704814311603,-500.0,0.00041342,30]
[310908697,1704814311613,-4760.81,0.00041342,30]
[310908698,1704814311622,-2591.36,0.00041342,30]
[310908699,1704814311632,-1849.48,0.00041342,30]
[310908700,1704814311641,-500.0,0.00041342,30]
[310908701,1704814311651,-1829.62,0.00041342,30]
[310908702,1704814311660,-507.02,0.00041342,30]
[310908703,1704814311669,-1545.72,0.00041342,30]
[310908704,1704814311678,-820.1,0.00041342,30]
[310908705,1704814311688,-1282.15,0.00041342,30]
[310908706,1704814311697,-3330.89,0.00041342,30]
[310908707,1704814311706,-7125.45,0.00041342,30]
[310908708,1704814311716,-1041.48,0.00041342,30]
[310908709,1704814311725,-500.0,0.00041342,30]
[310908710,1704814311735,-500.0,0.00041342,30]
[310908711,1704814311744,-4552.78,0.00041342,30]
[310908712,1704814311753,-25135.11,0.00041342,30]
[310908713,1704814311763,-500.0,0.00041342,30]
[310908714,1704814311772,-18448.99,0.00041342,30]
[310908715,1704814311781,-3134.7,0.00041342,30]
[310908716,1704814311791,-2000.28,0.00041342,30]
[310908717,1704814311802,-500.0,0.00041342,30]
[310908718,1704814311813,-500.0,0.00041342,30]
[310908719,1704814311823,-293.86679944,0.00041342,30]
[310908720,1704814311832,-500.0,0.00041342,30]
[310908721,1704814311842,-500.0,0.00041342,30]
[310908722,1704814311852,-745.36,0.00041342,30]
[310908723,1704814311862,-500.0,0.00041342,30]
[310908724,1704814311871,-13835.28,0.00041342,30]
[310908725,1704814311882,-1655.6,0.00041342,30]
[310908726,1704814311891,-1353.98,0.00041342,30]
[310908727,1704814311901,-2446.36,0.00041342,30]
[310908728,1704814311910,-19704.83,0.00041342,30]
[310908729,1704814311919,-3526.58,0.00041342,30]
[310908730,1704814311929,-11755.41,0.00041342,30]
[310908731,1704814311938,-500.0,0.00041342,30]
[310908732,1704814311947,-2085.11,0.00041342,30]
[310908733,1704814311957,-975.77,0.00041342,30]
[310908734,1704814311966,-500.0,0.00041342,7]
[310908735,1704814311977,-5456.33,0.00041342,30]
[310908736,1704814311986,-703.77,0.00041342,30]
[310908737,1704814311996,-578.03,0.00041342,30]
[310908738,1704814312005,-500.0,0.00041342,30]
[310908739,1704814312014,-18929.09,0.00041342,30]
[310908740,1704814312024,-91700.44,0.00041342,30]
[310908741,1704814312033,-500.0,0.00041342,30]
[310908742,1704814312043,-500.0,0.00041342,30]
[310908743,1704814312052,-610.44,0.00041342,30]
[310908744,1704814312062,-685.04,0.00041342,30]
[310908745,1704814312072,-4955.76,0.00041342,30]
[310908746,1704814312082,-11389.4,0.00041342,30]
[310908747,1704814312092,-5644.78,0.00041342,30]
[310908748,1704814312102,-1534.89,0.00041342,30]
[310908749,1704814312112,-1919.34,0.00041342,30]
[310908750,1704814312121,-1643.59,0.00041342,30]
[310908751,1704814312131,-500.0,0.00041342,30]
[310908752,1704814312141,-1207.82,0.00041342,30]
[310908753,1704814312150,-500.0,0.00041342,30]
[310908754,1704814312160,-500.0,0.00041342,30]
[310908755,1704814312170,-3051.16,0.00041342,30]
[310908756,1704814312179,-2205.97,0.00041342,30]
[310908757,1704814312189,-500.0,0.00041342,30]
[310908758,1704814312199,-4326.12,0.00041342,30]
[310908759,1704814312210,-23372.75,0.00041342,30]
[310908760,1704814312220,-4650.3,0.00041342,30]
[310908761,1704814312230,-1706.69,0.00041342,30]
[310908762,1704814312240,-3602.98,0.00041342,30]
[310908763,1704814312249,-366.49802913,0.00041342,30]
[310908764,1704814312259,-500.0,0.00041342,30]
[310908765,1704814312269,-500.0,0.00041342,30]
[310908766,1704814312278,-519.60739754,0.00041342,30]
[310908767,1704814312287,-948.23,0.00041342,30]
[310908768,1704814312296,-1484.9,0.00041342,30]
[310908769,1704814312306,-625.91,0.00041342,30]
[310908770,1704814312316,-4750.61,0.00041342,30]
[310908771,1704814312326,-677.56,0.00041342,30]
[310908772,1704814312335,-570.53,0.00041342,30]
[310908773,1704814312345,-753.01,0.00041342,30]
[310908774,1704814312354,-8509.95,0.00041342,30]
[310908775,1704814312364,-1014.72,0.00041342,30]
[310908776,1704814312373,-1075.83,0.00041342,30]
[310908777,1704814312383,-10401.23,0.00041342,30]
[310908778,1704814312393,-500.0,0.00041342,30]
[310908779,1704814312403,-2247.55,0.00041342,30]
[310908780,1704814312413,-1988.56,0.00041342,30]
[310908781,1704814312422,-1760.09,0.00041342,30]
[310908782,1704814312432,-1917.59,0.00041342,30]
[310908783,1704814312442,-6630.63,0.00041342,30]
[310908784,1704814312451,-6677.97,0.00041342,30]
[310908785,1704814312461,-912.61,0.00041342,30]
[310908786,1704814312470,-500.0,0.00041342,30]
[310908787,1704814312480,-531.34667833,0.00041342,30]
[310908788,1704814312489,-7738.46,0.00041342,30]
[310908789,1704814312498,-500.0,0.00041342,30]
[310908790,1704814312509,-500.0,0.00041342,30]
[310908791,1704814312518,-14437.73,0.00041342,30]
[310908792,1704814312528,-839.67,0.00041342,30]
[310908793,1704814312538,-1402.57,0.00041342,30]
[310908794,1704814312547,-814.2,0.00041342,30]
[310908795,1704814312557,-2196.22,0.00041342,30]
[310908796,1704814312567,-500.0,0.00041342,30]
[310908797,1704814312576,-504.56289681,0.00041342,30]
[310908798,1704814312587,-500.0,0.00041342,30]
[310908799,1704814312596,-36009.51,0.00041342,30]
[310908800,1704814312606,-2863.88,0.00041342,30]
[310908801,1704814312616,-12556.6,0.00041342,30]
[310908802,1704814312626,-211.75837901,0.00041342,30]
[310908803,1704814312635,-2592.03,0.00041342,30]
[310908804,1704814312644,-3304.26,0.00041342,30]
[310908805,1704814312654,-2705.09,0.00041342,30]
[310908806,1704814312664,-500.0,0.00041342,30]
[310908807,1704814312673,-500.0,0.00041342,30]
[310908808,1704814312683,-500.0,0.00041342,30]
[310908809,1704814312693,-639.96558451,0.00041342,30]
[310908810,1704814312702,-2751.1,0.00041342,30]
[310908811,1704814312711,-2400.96,0.00041342,30]
[310908812,1704814312721,-4406.91,0.00041342,30]
[310908813,1704814312731,-6577.65,0.00041342,30]
[310908814,1704814312741,-1297.88,0.00041342,30]
[310908815,1704814312751,-571.22,0.00041342,30]
[310908816,1704814312760,-500.0,0.00041342,30]
[310908817,1704814312770,-3403.92,0.00041342,30]
[310908818,1704814312779,-3033.25,0.00041342,30]
[310908819,1704814312789,-595.34964235,0.00041342,30]
[310908820,1704814312799,-952.63,0.00041342,30]
[310908821,1704814312808,-500.0,0.00041342,30]
[310908822,1704814312820,-1721.02,0.00041342,30]
[310908823,1704814312830,-836.3,0.00041342,7]
[310908824,1704814312840,-7028.61,0.00041342,30]
[310908825,1704814312849,-500.0,0.00041342,30]
[310908826,1704814312859,-5593.4,0.00041342,30]
[310908827,1704814312869,-2579.3,0.00041342,30]
[310908828,1704814312878,-500.0,0.00041342,30]
[310908829,1704814312887,-831.97,0.00041342,30]
[310908830,1704814312896,-500.0,0.00041342,30]
[310908831,1704814312906,-30439.38,0.00041342,30]
[310908832,1704814312915,-500.0,0.00041342,30]
[310908833,1704814312924,-3381.6,0.00041342,30]
[310908834,1704814312934,-500.0,0.00041342,30]
[310908835,1704814312943,-2158.92,0.00041342,30]
[310908836,1704814312952,-3472.05,0.00041342,30]
[310908837,1704814312962,-3977.49,0.00041342,30]
[310908838,1704814312971,-3410.32,0.00041342,30]
[310908839,1704814312981,-3128.49,0.00041342,30]
[310908840,1704814312990,-500.0,0.00041342,30]
[310908841,1704814313000,-500.0,0.00041342,30]
[310908842,1704814313009,-10635.21,0.00041342,30]
[310908843,1704814313019,-500.0,0.00041342,30]
[310908844,1704814313028,-663.76,0.00041342,30]
[310908845,1704814313038,-500.0,0.00041342,30]
[310908846,1704814313047,-24039.48,0.00041342,30]
[310908847,1704814313057,-500.0,0.00041342,30]
[310908848,1704814313068,-524.75488212,0.00041342,30]
[310908849,1704814313078,-500.0,0.00041342,30]
[310908850,1704814313087,-2042.98,0.00041342,30]
[310908851,1704814313097,-3985.89,0.00041342,30]
[310908852,1704814313106,-963.6,0.00041342,30]
[310908853,1704814313116,-666.14,0.00041342,30]
[310908854,1704814313125,-500.0,0.00041342,2]
[310908855,1704814313134,-556.97,0.00041342,30]
[310908856,1704814313144,-8775.01,0.00041342,30]
[310908857,1704814313154,-1309.81,0.00041342,30]
[310908858,1704814313165,-2400.49,0.00041342,30]
[310908859,1704814313175,-500.0,0.00041342,30]
[310908860,1704814313185,-566.11,0.00041342,30]
[310908861,1704814313194,-2978.02,0.00041342,30]
[310908862,1704814313204,-12849.89,0.00041342,30]
[310908863,1704814313214,-4562.41,0.00041342,30]
[310908864,1704814313224,-500.0,0.00041342,30]
[310908865,1704814313234,-4825.39,0.00041342,30]
[310908866,1704814313244,-2107.23,0.00041342,30]
[310908867,1704814313265,-1467.66,0.00041342,30]
[310908868,1704814313275,-1188.47,0.00041342,30]
[310908869,1704814313285,-500.0,0.00041342,30]
[310908870,1704814313295,-500.0,0.00041342,30]
[310908871,1704814313306,-11369.64,0.00041342,30]
[310908872,1704814313319,-500.0,0.00041342,7]
[310908873,1704814313329,-2592.28,0.00041342,30]
[310908874,1704814313339,-1243.26,0.00041342,30]
[310908875,1704814313350,-509.13021676,0.00041342,30]
[310908876,1704814313361,-3734.08,0.00041342,30]
[310908877,1704814313372,-566.95,0.00041342,30]
[310908878,1704814313383,-520.31,0.00041342,30]
[310908879,1704814313395,-13217.82,0.00041342,30]
[310908880,1704814313406,-500.0,0.00041342,30]
[310908881,1704814313418,-500.0,0.00041342,30]
[310908882,1704814313427,-1308.82,0.00041342,30]
[310908883,1704814313438,-866.47,0.00041342,30]
[310908884,1704814313448,-500.0,0.00041342,30]
[310908885,1704814313458,-3181.95,0.00041342,30]
[310908886,1704814313469,-500.0,0.00041342,30]
[310908887,1704814313479,-1766.64,0.00041342,30]
[310908888,1704814313489,-3615.8,0.00041342,30]
[310908889,1704814313499,-500.0,0.00041342,30]
[310908890,1704814313509,-500.0,0.00041342,30]
[310908891,1704814313519,-799.0,0.00041342,30]
[310908892,1704814313529,-372.06841849,0.00041342,30]
[310908893,1704814313540,-500.0,0.00041342,30]
[310908894,1704814313551,-500.0,0.00041342,30]
[310908895,1704814313562,-53505.47,0.00041342,30]
[310908896,1704814313572,-1413.08,0.00041342,30]
[310908897,1704814313583,-11287.22,0.00041342,30]
[310908898,1704814313593,-1155.76,0.00041342,30]
[310908899,1704814313604,-3747.83,0.00041342,30]
[310908900,1704814313616,-1079.77,0.00041342,30]
[310908901,1704814313626,-1909.74,0.00041342,30]
[310908902,1704814313636,-3376.04,0.00041342,30]
[310908903,1704814313647,-500.0,0.00041342,30]
[310908904,1704814313657,-500.0,0.00041342,30]
[310908905,1704814313667,-500.0,0.00041342,30]
[310908906,1704814313678,-1333.09,0.00041342,30]
[310908907,1704814313688,-500.0,0.00041342,30]
[310908908,1704814313698,-500.0,0.00041342,30]
[310908909,1704814313709,-9749.45,0.00041342,30]
[310908910,1704814313719,-539.77,0.00041342,30]
[310908911,1704814313730,-2218.8,0.00041342,30]
[310908912,1704814313740,-1480.74,0.00041342,30]
[310908913,1704814313749,-7804.99,0.00041342,30]
[310908914,1704814313759,-1670.61,0.00041342,30]
[310908915,1704814313769,-1352.73,0.00041342,30]
[310908916,1704814313779,-4741.82,0.00041342,30]
[310908917,1704814313788,-1839.15,0.00041342,30]
[310908918,1704814313798,-500.0,0.00041342,30]
[310908919,1704814313810,-866.78,0.00041342,30]
[310908920,1704814313821,-744.76,0.00041342,30]
[310908921,1704814313830,-1070.69,0.00041342,30]
[310908922,1704814313840,-1274.54,0.00041342,30]
[310908923,1704814313851,-2037.9,0.00041342,30]
[310908924,1704814313860,-500.0,0.00041342,30]
[310908925,1704814313870,-500.0,0.00041342,30]
[310908926,1704814313880,-6743.41,0.00041342,30]
[310908927,1704814313889,-6850.2,0.00041342,30]
[310908928,1704814313898,-1978.49,0.00041342,30]
[310908929,1704814313907,-621.39,0.00041342,30]
[310908930,1704814313917,-500.0,0.00041342,30]
[310908931,1704814313926,-3055.23,0.00041342,30]